[Event "Gaprindashvili Cup Women I Stage 2020"]
[Site "Online"]
[Date "2020.11.04"]
[Round "7.10"]
[White "Limar, Maria"]
[Black "Kalandadze, Mariam"]
[Result "0-1"]
[ECO "B92"]
[WhiteElo "1229"]
[BlackElo "1147"]
[Annotator "NA RC"]
[PlyCount "70"]
[EventDate "2020.11.04"]
[EventType "swiss"]
[SourceTitle "playchess.com"]
[Source "ChessBase"]
[SourceQuality "1"]
[TimeControl "1500+5"]

1. e4 {[%emt 0:00:03]} c5 {[%emt 0:00:05]} 2. Nf3 {[%emt 0:00:05]} d6 {[%emt 0:00:05]} 3. d4 {[%emt 0:00:04]} cxd4 {[%emt 0:00:03]} 4. Nxd4 {[%emt 0:00:02]} Nf6 {[%emt 0:00:03]} 5. Nc3 {[%emt 0:00:03]} a6 {[%emt 0:00:06]} 6. Be2 {[%emt 0:01:20]} e5 {[%emt 0:00:08]} 7. Nf3 {[%emt 0:00:33]} Be7 {[%emt 0:00:05]} 8. O-O {[%emt 0:00:05]} O-O {[%emt 0:00:04]} 9. h3 {[%emt 0:00:06]} Nc6 {[%emt 0:00:07]} 10. Be3 {[%emt 0:00:17]} Be6 {[%emt 0:00:21]} 11. Qd2 {[%emt 0:04:12]} h6 {[%emt 0:00:53]} 12. Rfd1 {[%emt 0:02:14]} Qc7 {[%emt 0:00:32]} 13. Na4 {[%emt 0:01:22]} Nxe4 {[%emt 0:02:33]} 14. Qe1 {[%emt 0:00:55]} b5 {[%emt 0:04:18]} 15. Nb6 {[%emt 0:02:27]} Rab8 {[%emt 0:01:05]} 16. Nd5 {[%emt 0:00:37]} Qb7 {[%emt 0:01:50]} 17. Bf1 {[%emt 0:02:24]} Bxd5 {[%emt 0:02:37]} 18. Rxd5 {[%emt 0:00:17]} Nb4 {[%emt 0:02:47]} 19. Rxb5 {[%emt 0:02:37]} axb5 {[%emt 0:00:27]} 20. Qxb4 {[%emt 0:00:07]} d5 {[%emt 0:01:58]} 21. Qe1 {[%emt 0:00:44]} d4 {[%emt 0:00:35]} 22. Bc1 {[%emt 0:00:40]} Bd6 {[%emt 0:01:00]} 23. Nxe5 {[%emt 0:02:32]} Bxe5 {[%emt 0:03:16]} 24. Bd3 {[%emt 0:00:33]} Nxf2 {[%emt 0:01:28]} 25. Qxf2 {[%emt 0:00:05]} Bf6 {[%emt 0:00:04]} 26. Bxh6 {[%emt 0:00:27]} gxh6 {[%emt 0:00:11]} 27. Qxf6 {[%emt 0:00:12]} Qb6 {[%emt 0:00:05]} 28. Qf4 {[%emt 0:00:50]} Qe6 {[%emt 0:00:21]} 29. Qg3+ {[%emt 0:00:44]} Kh8 {[%emt 0:00:05]} 30. Re1 {[%emt 0:00:17]} Qf6 {[%emt 0:00:08]} 31. Rf1 {[%emt 0:00:29]} Qc6 {[%emt 0:00:04]} 32. Qf4 {[%emt 0:00:11]} Rbc8 {[%emt 0:00:07]} 33. Qf5 {[%emt 0:00:05]} Qg6 {[%emt 0:00:05]} 34. Qf3 {[%emt 0:00:05]} Qg7 {[%emt 0:00:02]} 35. Qe4 {[%emt 0:00:05]} Rb8 {[%emt 0:00:03]} 0-1

[Event "Gaprindashvili Cup Women I Stage 2020"]
[Site "Online"]
[Date "2020.11.04"]
[Round "7.12"]
[White "Ashotia, Barbare"]
[Black "Gvatua, Mariam"]
[Result "0-1"]
[ECO "B22"]
[WhiteElo "1076"]
[BlackElo "1343"]
[Annotator "NA"]
[PlyCount "102"]
[EventDate "2020.11.04"]
[EventType "swiss"]
[SourceTitle "playchess.com"]
[Source "ChessBase"]
[SourceQuality "1"]
[TimeControl "1500+5"]

1. e4 {[%emt 0:00:01]} c5 {[%emt 0:00:03]} 2. c3 {[%emt 0:00:04]} Nf6 {[%emt 0:00:03]} 3. e5 {[%emt 0:00:04]} Nd5 {[%emt 0:00:02]} 4. d4 {[%emt 0:00:04]} cxd4 {[%emt 0:00:02]} 5. cxd4 {[%emt 0:00:02]} d6 {[%emt 0:00:21]} 6. f4 {[%emt 0:00:16]} dxe5 {[%emt 0:00:16]} 7. fxe5 {[%emt 0:00:04]} Nc6 {[%emt 0:00:02]} 8. Nc3 {[%emt 0:00:18]} Be6 {[%emt 0:00:20]} 9. h3 {[%emt 0:00:25]} g6 {[%emt 0:00:16]} 10. Nf3 {[%emt 0:00:08]} h6 {[%emt 0:00:10]} 11. Bc4 {[%emt 0:00:22]} Nxc3 {[%emt 0:00:09]} 12. bxc3 {[%emt 0:00:36]} Bxc4 {[%emt 0:00:22]} 13. Bd2 {[%emt 0:00:38]} Bg7 {[%emt 0:00:13]} 14. Kf2 {[%emt 0:00:47]} O-O {[%emt 0:01:57]} 15. Re1 {[%emt 0:01:51]} Bd5 {[%emt 0:00:11]} 16. Kg1 {[%emt 0:01:27]} Na5 {[%emt 0:00:19]} 17. Bf4 {[%emt 0:01:56]} e6 {[%emt 0:00:17]} 18. Nd2 {[%emt 0:02:21]} Qh4 {[%emt 0:00:41]} 19. Rf1 {[%emt 0:01:31]} Qe7 {[%emt 0:00:17]} 20. Nb3 {[%emt 0:00:47]} Nc4 {[%emt 0:00:11]} 21. Qc1 {[%emt 0:01:42]} g5 {[%emt 0:00:11]} 22. Bg3 {[%emt 0:00:43]} b6 {[%emt 0:00:13]} 23. Nd2 {[%emt 0:00:48]} Ne3 {[%emt 0:00:46]} 24. Rf2 {[%emt 0:00:09]} Nf5 {[%emt 0:00:07]} 25. Bh2 {[%emt 0:00:26]} Rac8 {[%emt 0:00:34]} 26. Qb2 {[%emt 0:01:08]} Qc7 {[%emt 0:00:57]} 27. Rc1 {[%emt 0:01:43]} Nxd4 {[%emt 0:02:17]} 28. c4 {[%emt 0:04:23]} Qc5 {[%emt 0:00:10]} 29. Kh1 {[%emt 0:01:35]} Bb7 {[%emt 0:00:16]} 30. Bg1 {[%emt 0:00:25]} Qxe5 {[%emt 0:00:10]} 31. Bh2 {[%emt 0:00:45]} Qe3 {[%emt 0:00:13]} 32. Bg1 {[%emt 0:00:02]} Qxh3+ {[%emt 0:00:35]} 33. Bh2 {[%emt 0:00:03]} Qh4 {[%emt 0:00:06]} 34. Rff1 {[%emt 0:00:06]} Ne2 {[%emt 0:00:13]} 35. Qb3 {[%emt 0:00:03]} Nxc1 {[%emt 0:00:06]} 36. Rxc1 {[%emt 0:00:02]} Qf2 {[%emt 0:00:06]} 37. Nf3 {[%emt 0:00:07]} Bxf3 {[%emt 0:00:02]} 38. Qxf3 {[%emt 0:00:03]} Qxf3 {[%emt 0:00:03]} 39. gxf3 {[%emt 0:00:01]} Rfd8 {[%emt 0:00:03]} 40. Rc2 {[%emt 0:00:06]} Rd1+ {[%emt 0:00:03]} 41. Kg2 {[%emt 0:00:02]} Rcd8 {[%emt 0:00:02]} 42. Bg3 {[%emt 0:00:05]} R1d2+ {[%emt 0:00:04]} 43. Rxd2 {[%emt 0:00:01]} Rxd2+ {[%emt 0:00:04]} 44. Kf1 {[%emt 0:00:03]} Rc2 {[%emt 0:00:04]} 45. f4 {[%emt 0:00:04]} gxf4 {[%emt 0:00:04]} 46. Bxf4 {[%emt 0:00:02]} Rxc4 {[%emt 0:00:03]} 47. Bd6 {[%emt 0:00:11]} Ra4 {[%emt 0:00:04]} 48. a3 {[%emt 0:00:03]} Bb2 {[%emt 0:00:02]} 49. Bg3 {[%emt 0:00:12]} Rxa3 {[%emt 0:00:05]} 50. Bf4 {[%emt 0:00:05]} Rf3+ {[%emt 0:00:03]} 51. Ke2 {[%emt 0:00:03]} Rxf4 {[%emt 0:00:02]} 0-1

[Event "Gaprindashvili Cup Women I Stage 2020"]
[Site "Online"]
[Date "2020.11.04"]
[Round "8.1"]
[White "Esadze, Tamari"]
[Black "Maghlakelidze, Rusudan"]
[Result "1-0"]
[ECO "C10"]
[WhiteElo "1889"]
[BlackElo "1613"]
[Annotator "NA RC"]
[PlyCount "81"]
[EventDate "2020.11.04"]
[EventType "swiss"]
[SourceTitle "playchess.com"]
[Source "ChessBase"]
[SourceQuality "1"]
[TimeControl "1500+5"]

{[%evp 33,78,330,331,446,32767,32767,453,571,575,594,614,568,669,696,964,468,572,449,444,0,684,747,1075,771,688,895,931,1012,791,32767,32767,32767,32767,32767,572,32767,32767,32767,32767,32767,608,564,847,927,1243,2106,5790]} 1. e4 {[%emt 0:00:00]} e6 {[%emt 0:00:02]} 2. d4 {[%emt 0:00:05]} d5 {[%emt 0:00:02]} 3. Nd2 {[%emt 0:00:04]} dxe4 {[%emt 0:00:03]} 4. Nxe4 {[%emt 0:00:02]} Nd7 {[%emt 0:00:02]} 5. Nf3 {[%emt 0:00:03]} Ngf6 {[%emt 0:00:01]} 6. Nxf6+ {[%emt 0:00:03]} Nxf6 {[%emt 0:00:02]} 7. Bd3 {[%emt 0:00:02] 7.Bg5 is the recent fashion.} Bd6 {[%emt 0:00:04]} 8. O-O {[%emt 0:00:03] C10: French with 3 Nc3: Unusual Black 3rd moves and 3...dxe4.} O-O {[%emt 0:00:02]} 9. c3 {[%emt 0:00:22]} h6 {[%emt 0:00:02]} 10. Re1 {[%emt 0:00:13]} c5 {[%emt 0:00:06]} 11. Bc2 {[%emt 0:01:01]} Qc7 {[%emt 0:00:17]} 12. dxc5 {[%emt 0:00:25]} Bxc5 {[%emt 0:00:10]} 13. Ne5 {[%emt 0:00:18] [#]} Rd8 $146 {[%emt 0:03:31]} ({Predecessor:} 13... Bd6 14. Bf4 b6 15. Qd3 Rd8 16. Rad1 Bb7 17. Nxf7 Qc6 18. Nxh6+ Kh8 19. Qg6 Bxf4 20. Nf7+ Kg8 21. Nxd8 {1-0 (23) Jovanovic,Z (2383)-Sutkovic,D (2243) Pula 2001}) 14. Qf3 {[%emt 0:00:21]} Qe7 {[%emt 0:01:35]} 15. Qg3 {[%emt 0:01:39]} Nh5 {[%emt 0:01:08]} 16. Qh3 {[%emt 0:01:16]} Nf6 {[%emt 0:01:12]} 17. b4 {[%emt 0:02:29]} Bd6 {[%emt 0:01:03] [#]} 18. Bxh6 $1 {[%emt 0:03:03]} gxh6 {[%emt 0:00:33]} 19. Qxh6 {[%emt 0:00:07]} Qf8 {[%emt 0:07:18]} 20. Qxf6 {[%emt 0:00:31]} Be7 {[%emt 0:00:04]} 21. Qf3 {[%emt 0:00:30]} Qg7 {[%emt 0:01:07]} 22. Rad1 {[%emt 0:00:55]} Rxd1 {[%emt 0:00:27]} 23. Qxd1 {[%emt 0:00:05]} Bg5 {[%emt 0:01:56]} 24. Qd3 {[%emt 0:00:30]} f5 $11 {[%emt 0:01:12]} 25. Qd6 {[%emt 0:00:53]} (25. Bb3 Qf6) 25... Qe7 {[%emt 0:00:59]} 26. Qd3 $2 {[%emt 0:00:50]} (26. Qd1 $18) 26... b6 $2 {[%emt 0:01:11]} 27. Bb3 {[%emt 0:00:28]} Kg7 {[%emt 0:01:20]} 28. Nf3 {[%emt 0:00:43]} Bf6 {[%emt 0:00:17]} 29. Nd4 {[%emt 0:00:11]} Bxd4 {[%emt 0:00:59]} 30. Qxd4+ {[%emt 0:00:03]} Kf7 {[%emt 0:00:11]} 31. Qe5 {[%emt 0:00:12]} Bd7 {[%emt 0:00:10]} 32. Qxf5+ {[%emt 0:00:21]} Qf6 {[%emt 0:00:09]} 33. Qh5+ {[%emt 0:00:34]} Ke7 {[%emt 0:00:21]} 34. Qh7+ {[%emt 0:00:40]} Qf7 {[%emt 0:00:03]} 35. Qe4 {[%emt 0:00:05]} Rf8 {[%emt 0:00:05]} 36. f3 {[%emt 0:00:03]} Qf6 {[%emt 0:00:06]} 37. Qd3 {[%emt 0:01:06]} Rc8 {[%emt 0:00:05]} (37... Qf4 $142 38. Rd1 Bc6) 38. Rd1 {[%emt 0:00:24]} Bc6 {[%emt 0:00:08]} 39. Qd6+ {[%emt 0:00:19]} Kf7 $18 {[%emt 0:00:01]} 40. Re1 {[%emt 0:00:25]} Qxc3 {[%emt 0:00:07]} 41. Qxe6+ {[%emt 0:00:10]} 1-0

[Event "Gaprindashvili Cup Women I Stage 2020"]
[Site "Online"]
[Date "2020.11.04"]
[Round "8.2"]
[White "Dolakidze, Mariam"]
[Black "Bedoshvili, Dea"]
[Result "0-1"]
[ECO "D02"]
[WhiteElo "1416"]
[BlackElo "1667"]
[Annotator "NA RC"]
[PlyCount "84"]
[EventDate "2020.11.04"]
[EventType "swiss"]
[SourceTitle "playchess.com"]
[Source "ChessBase"]
[SourceQuality "1"]
[TimeControl "1500+5"]

1. Nf3 {[%emt 0:00:00]} d5 {[%emt 0:00:05]} 2. g3 {[%emt 0:00:03]} c6 {[%emt 0:00:03]} 3. Bg2 {[%emt 0:00:02]} Bg4 {[%emt 0:00:06]} 4. d4 {[%emt 0:00:06]} e6 {[%emt 0:00:02]} 5. b3 {[%emt 0:00:34]} Bd6 {[%emt 0:00:09]} 6. c4 {[%emt 0:00:03]} Nd7 {[%emt 0:00:03]} 7. Nc3 {[%emt 0:00:44]} Ne7 {[%emt 0:00:15]} 8. Bb2 {[%emt 0:01:39]} O-O {[%emt 0:00:14]} 9. O-O {[%emt 0:00:03]} Rc8 {[%emt 0:00:18]} 10. c5 {[%emt 0:00:17]} Bb8 {[%emt 0:00:05]} 11. b4 {[%emt 0:00:02]} f6 {[%emt 0:00:52]} 12. Qc2 {[%emt 0:00:33]} Bf5 {[%emt 0:00:38]} 13. Qd2 {[%emt 0:00:31]} e5 {[%emt 0:00:14]} 14. e3 {[%emt 0:00:19]} e4 {[%emt 0:02:05]} 15. Ne1 {[%emt 0:00:05]} Be6 {[%emt 0:00:05]} 16. a4 {[%emt 0:00:41]} f5 {[%emt 0:00:21]} 17. b5 {[%emt 0:00:20]} Rf6 {[%emt 0:01:25]} 18. a5 {[%emt 0:00:31]} g5 {[%emt 0:00:39]} 19. b6 {[%emt 0:00:15]} a6 {[%emt 0:01:44]} 20. f4 {[%emt 0:00:12]} gxf4 {[%emt 0:00:11]} 21. gxf4 {[%emt 0:00:03]} Rh6 {[%emt 0:00:21]} 22. Rf2 {[%emt 0:01:07]} Nf6 {[%emt 0:00:23]} 23. Bf1 {[%emt 0:00:04]} Ng4 {[%emt 0:00:30]} 24. Rg2 {[%emt 0:00:02]} Kf7 {[%emt 0:00:17]} 25. Be2 {[%emt 0:00:10]} Nf6 {[%emt 0:00:26]} 26. Nc2 {[%emt 0:00:18]} Ng6 {[%emt 0:01:14]} 27. Kf2 {[%emt 0:01:18]} Nh4 {[%emt 0:01:39]} 28. Rg3 {[%emt 0:00:23]} Ng4+ {[%emt 0:00:59]} 29. Bxg4 {[%emt 0:02:21]} fxg4 {[%emt 0:00:04]} 30. Ne1 {[%emt 0:00:09]} Bf5 {[%emt 0:00:34]} 31. Ke2 {[%emt 0:00:52]} Nf3 {[%emt 0:01:22]} 32. Nxf3 {[%emt 0:00:03]} exf3+ {[%emt 0:00:02]} 33. Kf2 {[%emt 0:00:22]} Rxh2+ {[%emt 0:00:07]} 34. Ke1 {[%emt 0:00:17]} Rxd2 {[%emt 0:00:04]} 35. Kxd2 {[%emt 0:00:01]} h5 {[%emt 0:00:03]} 36. Rgg1 {[%emt 0:01:29]} h4 {[%emt 0:00:04]} 37. Raf1 {[%emt 0:00:23]} Qf6 {[%emt 0:00:19]} 38. Bc1 {[%emt 0:00:29]} Bxf4 {[%emt 0:00:09]} 39. exf4 {[%emt 0:00:07]} Qxd4+ {[%emt 0:00:02]} 40. Ke1 {[%emt 0:00:06]} Qxc3+ {[%emt 0:00:03]} 41. Bd2 {[%emt 0:00:04]} Re8+ {[%emt 0:00:06]} 42. Kd1 {[%emt 0:00:03]} Qc2# {[%emt 0:00:05]} 0-1

[Event "Gaprindashvili Cup Women I Stage 2020"]
[Site "Online"]
[Date "2020.11.04"]
[Round "8.3"]
[White "Lagazauri, Tamar"]
[Black "Tsotsonava, Elene"]
[Result "1/2-1/2"]
[ECO "A23"]
[WhiteElo "1657"]
[BlackElo "1805"]
[Annotator "NA RC"]
[PlyCount "69"]
[EventDate "2020.11.04"]
[EventType "swiss"]
[SourceTitle "playchess.com"]
[Source "ChessBase"]
[SourceQuality "1"]
[TimeControl "1500+5"]

1. c4 {[%emt 0:00:00]} e5 {[%emt 0:00:03]} 2. Nc3 {[%emt 0:00:03]} Nf6 {[%emt 0:00:02]} 3. g3 {[%emt 0:00:01]} c6 {[%emt 0:00:02]} 4. e4 {[%emt 0:00:19]} d5 {[%emt 0:00:55]} 5. cxd5 {[%emt 0:00:11]} cxd5 {[%emt 0:00:02]} 6. exd5 {[%emt 0:00:05] A23: English Opening: 1...e5 2 Nc3 Nf6 3 g3 c6.} Nxd5 {[%emt 0:00:03]} 7. Bg2 {[%emt 0:00:04]} Nxc3 {[%emt 0:00:28]} 8. dxc3 {[%emt 0:00:25]} Qxd1+ {[%emt 0:00:16]} 9. Kxd1 {[%emt 0:00:03]} Bc5 {[%emt 0:00:07]} 10. Ke2 {[%emt 0:00:33]} Nc6 {[%emt 0:00:13]} 11. Be3 {[%emt 0:00:25]} Bxe3 {[%emt 0:00:11]} 12. Kxe3 {[%emt 0:00:08] [#]} Be6 $146 {[%emt 0:00:05]} ({Predecessor:} 12... Bd7 13. h4 O-O-O 14. h5 Be6 15. h6 g6 16. Ne2 Rd6 17. Rhd1 Rhd8 18. Rxd6 Rxd6 {½-½ (43) Patola,E (1956)-Christiansen,N (1669) Bornholm 2013}) 13. Bxc6+ {[%emt 0:04:14]} bxc6 {[%emt 0:00:03]} 14. Nf3 {[%emt 0:00:03]} O-O {[%emt 0:04:04]} 15. Rhd1 {[%emt 0:03:59]} Bd5 {[%emt 0:01:52]} 16. b3 {[%emt 0:01:18]} Rae8 {[%emt 0:02:08]} 17. c4 {[%emt 0:00:44]} Be6 {[%emt 0:00:04]} 18. Rd6 {[%emt 0:00:17]} f5 {[%emt 0:01:44]} 19. Nxe5 {[%emt 0:05:17]} Bxc4 {[%emt 0:00:08]} 20. Kd4 {[%emt 0:00:06]} ({Don't play} 20. bxc4 Rxe5+ 21. Kf3 Rc5 $14) 20... Bd5 {[%emt 0:01:13]} 21. Nxc6 {[%emt 0:04:31]} (21. f4 $16) 21... Bxc6 {[%emt 0:00:24]} 22. Rxc6 {[%emt 0:00:03]} Re2 $11 {[%emt 0:00:01]} 23. Rc7 {[%emt 0:00:21]} Ra8 {[%emt 0:04:30]} 24. h4 {[%emt 0:03:30]} Rxf2 {[%emt 0:01:10]} 25. Ke3 {[%emt 0:00:11]} Rg2 {[%emt 0:00:01]} 26. Kf3 {[%emt 0:00:02]} Rd2 {[%emt 0:00:02]} 27. Re1 {[%emt 0:00:03]} Rd3+ {[%emt 0:03:43]} 28. Kf4 {[%emt 0:00:02]} Rad8 {[%emt 0:01:08]} 29. Ree7 {[%emt 0:00:05]} g6 {[%emt 0:01:04]} 30. Rg7+ {[%emt 0:00:07]} Kf8 {[%emt 0:00:02]} 31. Rcf7+ {[%emt 0:00:12]} Ke8 {[%emt 0:00:03]} 32. Re7+ {[%emt 0:00:08]} Kf8 {[%emt 0:00:02]} 33. Rgf7+ {[%emt 0:00:02]} Kg8 {[%emt 0:00:02]} 34. Rg7+ {[%emt 0:00:03]} Kf8 {[%emt 0:00:01]} 35. Rgf7+ {[%emt 0:00:10]} 1/2-1/2

[Event "Gaprindashvili Cup Women I Stage 2020"]
[Site "Online"]
[Date "2020.11.04"]
[Round "8.4"]
[White "Khazhomia, Anuki"]
[Black "Kirtadze, Anastasia"]
[Result "1/2-1/2"]
[ECO "D38"]
[WhiteElo "1880"]
[BlackElo "1810"]
[Annotator "NA RC"]
[PlyCount "78"]
[EventDate "2020.11.04"]
[EventType "swiss"]
[SourceTitle "playchess.com"]
[Source "ChessBase"]
[SourceQuality "1"]
[TimeControl "1500+5"]

1. d4 {[%emt 0:00:01]} Nf6 {[%emt 0:00:05]} 2. c4 {[%emt 0:00:03]} e6 {[%emt 0:00:04]} 3. Nf3 {[%emt 0:00:06]} Bb4+ {[%emt 0:00:19]} 4. Nc3 {[%emt 0:00:09]} O-O {[%emt 0:00:13]} 5. Bg5 {[%emt 0:00:39]} d5 {[%emt 0:00:33]} 6. e3 {[%emt 0:00:10]} h6 {[%emt 0:00:10]} 7. Bh4 {[%emt 0:00:13] D38: Queen's Gambit Declined: Ragozin Defence (4 Nf3 Bb4).} Be7 {[%emt 0:01:21]} 8. cxd5 {[%emt 0:01:48]} exd5 {[%emt 0:00:29]} 9. Qb3 {[%emt 0:00:20]} c6 {[%emt 0:00:04]} 10. Bd3 {[%emt 0:00:08]} Re8 {[%emt 0:00:11]} 11. O-O {[%emt 0:00:05]} Nbd7 {[%emt 0:00:05]} 12. Rac1 {[%emt 0:00:32] [#]} Bd6 $146 {[%emt 0:00:16]} ({Predecessor:} 12... c5 13. Bb1 cxd4 14. exd4 a6 15. Qc2 Nf8 16. Ne5 Ng4 17. Bg3 Nxe5 18. dxe5 Be6 {0-1 (52) Chernykh,A (1828)-Focke,A (1698) Hannover 2016}) 13. Na4 {[%emt 0:01:21]} Qc7 {[%emt 0:00:30]} 14. Nc5 {[%emt 0:05:09]} Nxc5 {[%emt 0:01:00]} 15. dxc5 {[%emt 0:00:04]} Be7 {[%emt 0:00:10]} 16. Qc2 {[%emt 0:02:12]} Bg4 {[%emt 0:00:35]} 17. Bg3 {[%emt 0:00:45]} Qc8 {[%emt 0:00:53]} 18. Nd4 {[%emt 0:00:13]} Bf8 {[%emt 0:00:23]} 19. f3 {[%emt 0:01:17]} Bd7 {[%emt 0:00:22]} 20. Rfe1 {[%emt 0:02:47]} Nh5 {[%emt 0:02:04]} 21. Bf2 {[%emt 0:00:36]} Be7 {[%emt 0:00:29]} 22. g4 {[%emt 0:01:20]} Nf6 {[%emt 0:01:07]} 23. Bg3 {[%emt 0:01:38]} Bf8 {[%emt 0:00:45]} 24. h4 {[%emt 0:00:24]} g6 {[%emt 0:00:48]} 25. g5 {[%emt 0:02:57]} (25. Qh2 $16) 25... hxg5 {[%emt 0:00:22]} 26. hxg5 {[%emt 0:00:02]} Nh5 {[%emt 0:00:40]} 27. Bh2 {[%emt 0:01:08]} (27. Bd6 $11) 27... Bg7 {[%emt 0:00:18]} 28. Bxg6 {[%emt 0:00:20]} fxg6 {[%emt 0:00:34]} 29. Qxg6 {[%emt 0:00:03]} Bg4 {[%emt 0:08:29]} 30. Rc2 {[%emt 0:00:03]} Bxf3 {[%emt 0:00:57]} 31. Nf5 {[%emt 0:00:31]} Qd7 {[%emt 0:01:45]} 32. Rf2 {[%emt 0:00:12]} Re6 {[%emt 0:00:35]} 33. Nh6+ {[%emt 0:00:06]} Kh8 {[%emt 0:00:04]} 34. Nf7+ {[%emt 0:00:02]} Kg8 {[%emt 0:00:03]} 35. Nh6+ {[%emt 0:00:03]} Kh8 {[%emt 0:00:03]} 36. Nf7+ {[%emt 0:00:02]} Kg8 $11 {[%emt 0:00:03]} 37. Nh6+ {[%emt 0:00:07]} Kh8 {[%emt 0:00:06]} 38. Nf7+ {[%emt 0:00:09]} Kg8 {[%emt 0:00:07]} 39. Nh6+ {[%emt 0:00:12]} Kh8 {[%emt 0:00:08]} 1/2-1/2

[Event "Gaprindashvili Cup Women I Stage 2020"]
[Site "Online"]
[Date "2020.11.04"]
[Round "8.5"]
[White "Gvatua, Mariam"]
[Black "Sichinava, Mariam"]
[Result "0-1"]
[ECO "A72"]
[WhiteElo "1343"]
[BlackElo "1516"]
[Annotator "NA RC"]
[PlyCount "68"]
[EventDate "2020.11.04"]
[EventType "swiss"]
[SourceTitle "playchess.com"]
[Source "ChessBase"]
[SourceQuality "1"]
[TimeControl "1500+5"]

1. d4 {[%emt 0:00:05]} Nf6 {[%emt 0:00:02]} 2. c4 {[%emt 0:00:05]} c5 {[%emt 0:00:04]} 3. d5 {[%emt 0:00:06]} g6 {[%emt 0:00:03]} 4. Nc3 {[%emt 0:00:12]} Bg7 {[%emt 0:00:02]} 5. e4 {[%emt 0:00:03]} O-O {[%emt 0:00:01]} 6. Nf3 {[%emt 0:00:09]} e6 {[%emt 0:00:03]} 7. Be2 {[%emt 0:02:06]} exd5 {[%emt 0:00:04]} 8. cxd5 {[%emt 0:00:02]} d6 {[%emt 0:00:02]} 9. Bf4 {[%emt 0:00:36]} Re8 {[%emt 0:00:25]} 10. Nd2 {[%emt 0:00:03]} Na6 {[%emt 0:01:10]} 11. f3 {[%emt 0:01:06]} Nh5 {[%emt 0:01:12]} 12. Be3 {[%emt 0:00:04]} Nc7 {[%emt 0:00:03]} 13. O-O {[%emt 0:00:11]} Rb8 {[%emt 0:00:18]} 14. a4 {[%emt 0:00:22]} b6 {[%emt 0:00:31]} 15. Nc4 {[%emt 0:00:13]} a6 {[%emt 0:00:11]} 16. Qc1 {[%emt 0:04:47]} b5 {[%emt 0:00:48]} 17. axb5 {[%emt 0:01:06]} axb5 {[%emt 0:00:03]} 18. Na5 {[%emt 0:00:26]} Bd7 {[%emt 0:01:25]} 19. Bg5 {[%emt 0:00:57]} Qc8 {[%emt 0:01:24]} 20. Nc6 {[%emt 0:02:54]} Bxc6 {[%emt 0:01:08]} 21. dxc6 {[%emt 0:00:04]} b4 {[%emt 0:00:03]} 22. Nd1 {[%emt 0:00:55]} Ne6 {[%emt 0:00:57]} 23. Ne3 {[%emt 0:02:27]} Nxg5 {[%emt 0:00:16]} 24. Nd5 {[%emt 0:00:13]} Ne6 {[%emt 0:00:18]} 25. Ra7 {[%emt 0:00:30]} Bd4+ {[%emt 0:05:09]} 26. Kh1 {[%emt 0:00:05]} Qd8 {[%emt 0:00:12]} 27. g3 {[%emt 0:01:46]} Rc8 {[%emt 0:06:50]} 28. Rd7 {[%emt 0:00:45]} Qg5 {[%emt 0:00:10]} 29. f4 {[%emt 0:00:13]} Qh6 {[%emt 0:00:15]} 30. Ne7+ {[%emt 0:00:54]} Rxe7 {[%emt 0:00:08]} 31. Rxe7 {[%emt 0:00:03]} Nxg3+ {[%emt 0:00:05]} 32. Kg2 {[%emt 0:00:08]} Nxe2 {[%emt 0:00:04]} 33. Qc4 {[%emt 0:00:31]} N2xf4+ {[%emt 0:00:12]} 34. Kh1 {[%emt 0:00:27]} Qg5 {[%emt 0:00:22]} 0-1

[Event "Gaprindashvili Cup Women I Stage 2020"]
[Site "Online"]
[Date "2020.11.04"]
[Round "8.6"]
[White "Mgeladze, Kesaria"]
[Black "Asatiani, Tamar"]
[Result "1-0"]
[ECO "C87"]
[WhiteElo "1380"]
[BlackElo "1004"]
[Annotator "NA RC"]
[PlyCount "63"]
[EventDate "2020.11.04"]
[EventType "swiss"]
[SourceTitle "playchess.com"]
[Source "ChessBase"]
[SourceQuality "1"]
[TimeControl "1500+5"]

1. e4 {[%emt 0:00:02]} e5 {[%emt 0:00:02]} 2. Nf3 {[%emt 0:00:02]} Nc6 {[%emt 0:00:03]} 3. Bb5 {[%emt 0:00:02]} a6 {[%emt 0:00:03]} 4. Ba4 {[%emt 0:00:01]} Nf6 {[%emt 0:00:04]} 5. d3 {[%emt 0:00:01]} d6 {[%emt 0:00:06]} 6. c3 {[%emt 0:00:05]} Be7 {[%emt 0:00:14]} 7. O-O {[%emt 0:00:02]} Bg4 {[%emt 0:00:04]} 8. h3 {[%emt 0:00:05]} Bh5 {[%emt 0:00:04]} 9. Nbd2 {[%emt 0:01:04]} b5 {[%emt 0:00:07]} 10. Bc2 {[%emt 0:00:08]} O-O {[%emt 0:00:08]} 11. Re1 {[%emt 0:00:50]} d5 {[%emt 0:00:25]} 12. exd5 {[%emt 0:00:32]} Qxd5 {[%emt 0:00:21]} 13. Ne4 {[%emt 0:03:04]} Rad8 {[%emt 0:01:08]} 14. Be3 {[%emt 0:03:41]} Nxe4 {[%emt 0:00:41]} 15. dxe4 {[%emt 0:00:04]} Qe6 {[%emt 0:00:49]} 16. Qe2 {[%emt 0:00:20]} Qg6 {[%emt 0:00:59]} 17. Rad1 {[%emt 0:00:43]} Rxd1 {[%emt 0:00:30]} 18. Rxd1 {[%emt 0:00:02]} Qe6 {[%emt 0:01:08]} 19. Bb3 {[%emt 0:00:23]} Qf6 {[%emt 0:00:50]} 20. g4 {[%emt 0:00:18]} Qg6 {[%emt 0:00:50]} 21. Nd2 {[%emt 0:00:30]} Bg5 {[%emt 0:00:56]} 22. gxh5 {[%emt 0:00:33]} Qh6 {[%emt 0:00:59]} 23. Bxg5 {[%emt 0:00:07]} Qxg5+ {[%emt 0:00:03]} 24. Qg4 {[%emt 0:00:02]} Qf6 {[%emt 0:00:19]} 25. Nf3 {[%emt 0:00:44]} b4 {[%emt 0:00:30]} 26. Qf5 {[%emt 0:00:42]} Qe7 {[%emt 0:01:25]} 27. Rd7 {[%emt 0:01:30]} Qe8 {[%emt 0:00:14]} 28. Rxc7 {[%emt 0:01:18]} bxc3 {[%emt 0:00:58]} 29. bxc3 {[%emt 0:00:04]} Na5 {[%emt 0:00:14]} 30. Ng5 {[%emt 0:00:04]} g6 {[%emt 0:00:45]} 31. Bxf7+ {[%emt 0:00:07]} Kh8 {[%emt 0:00:39]} 32. Qf6# {[%emt 0:00:02]} 1-0